[Event "Pan-AM College-chT 2018"]
[Site "Burlingame"]
[Date "2018.12.28"]
[Round "1"]
[White "Durarbayli, Vasif"]
[Black "Sheehan, Andrew"]
[Result "1-0"]
[ECO "B61"]
[WhiteElo "2620"]
[BlackElo "1877"]
[Annotator "ChessBase"]
[PlyCount "117"]
[EventDate "2018.12.28"]
[EventType "swiss"]
[EventCountry "USA"]
[SourceTitle "playchess.com"]
[Source "ChessBase"]
[SourceQuality "1"]
[TimeControl "5400+30"]

1. e4 {[%emt 0:00:00]} c5 {[%emt 0:00:00]} 2. Nf3 {[%emt 0:00:00]} d6 {[%emt 0:00:00]} 3. d4 {[%emt 0:00:00]} Nf6 {[%emt 0:00:00]} 4. Nc3 {[%emt 0:00:00]} cxd4 {[%emt 0:00:01]} 5. Nxd4 {[%emt 0:00:00]} Nc6 {[%emt 0:00:08]} 6. Bg5 {[%emt 0:00:01]} Bd7 {[%emt 0:00:11]} 7. Qd2 {[%emt 0:09:08]} Rc8 {[%emt 0:00:24]} 8. f4 {[%emt 0:06:12]} Nxd4 {[%emt 0:00:43]} 9. Qxd4 {[%emt 0:02:24]} Qa5 {[%emt 0:00:28]} 10. e5 {[%emt 0:00:47]} dxe5 {[%emt 0:00:23]} 11. fxe5 {[%emt 0:00:04]} e6 {[%emt 0:00:24]} 12. O-O-O {[%emt 0:00:41]} Bc5 {[%emt 0:00:39]} 13. Qd2 {[%emt 0:07:28]} Nd5 {[%emt 0:00:24]} 14. Nxd5 {[%emt 0:00:15]} Qxd2+ {[%emt 0:00:16]} 15. Rxd2 {[%emt 0:00:51]} exd5 {[%emt 0:00:12]} 16. Rxd5 {[%emt 0:00:58]} h6 {[%emt 0:00:33]} 17. Bh4 {[%emt 0:05:45]} g5 {[%emt 0:02:10]} 18. Be1 {[%emt 0:00:24]} Be6 {[%emt 0:01:08]} 19. Bb5+ {[%emt 0:10:10]} Ke7 {[%emt 0:01:15]} 20. Rxc5 {[%emt 0:00:10]} Rxc5 {[%emt 0:00:08]} 21. Bb4 {[%emt 0:00:02]} Rhc8 {[%emt 0:00:14]} 22. b3 {[%emt 0:20:10]} Bd5 {[%emt 0:06:23]} 23. Rf1 {[%emt 0:00:13]} Ke6 {[%emt 0:04:26]} 24. Bd3 {[%emt 0:12:58]} Bxg2 {[%emt 0:12:37]} 25. Rf6+ {[%emt 0:02:03]} Kxe5 {[%emt 0:04:38]} 26. Rf5+ {[%emt 0:00:03]} Kd4 {[%emt 0:04:29]} 27. Bxc5+ {[%emt 0:01:17]} Rxc5 {[%emt 0:00:08]} 28. Rxf7 {[%emt 0:00:01]} Ke3 {[%emt 0:07:21]} 29. Kd1 {[%emt 0:00:34]} g4 {[%emt 0:04:06]} 30. Ke1 {[%emt 0:00:29]} Rh5 {[%emt 0:09:52]} 31. Re7+ {[%emt 0:00:23]} Kd4 {[%emt 0:01:44]} 32. Kf2 {[%emt 0:00:13]} Bf3 {[%emt 0:01:03]} 33. Rd7+ {[%emt 0:01:49]} Kc3 {[%emt 0:00:34]} 34. Kg1 {[%emt 0:00:03]} Re5 {[%emt 0:02:52]} 35. Kf2 {[%emt 0:00:15]} Rh5 {[%emt 0:00:34]} 36. Kg1 {[%emt 0:00:07]} Re5 {[%emt 0:00:10]} 37. Rh7 {[%emt 0:00:34]} Re6 {[%emt 0:05:48]} 38. Kf2 {[%emt 0:00:38]} a5 {[%emt 0:06:44]} 39. Kg3 {[%emt 0:00:59]} Kb2 {[%emt 0:05:09]} 40. a4 {[%emt 0:02:51]} Be4 {[%emt 0:00:50]} 41. Bxe4 {[%emt 0:00:21]} Rxe4 {[%emt 0:00:08]} 42. Rxb7 {[%emt 0:00:02]} Kxc2 {[%emt 0:00:26]} 43. Rb5 {[%emt 0:00:05]} Kc3 {[%emt 0:05:11]} 44. Rxa5 {[%emt 0:01:02]} Kxb3 {[%emt 0:00:13]} 45. Ra8 {[%emt 0:00:02]} h5 {[%emt 0:02:22]} 46. a5 {[%emt 0:00:34]} Re7 {[%emt 0:05:15]} 47. a6 {[%emt 0:04:17]} Rh7 {[%emt 0:00:49]} 48. Rb8+ {[%emt 0:03:22]} Kc4 {[%emt 0:00:12]} 49. Rb1 {[%emt 0:04:21]} Ra7 {[%emt 0:06:29]} 50. Ra1 {[%emt 0:00:12]} Kd4 {[%emt 0:00:39]} 51. Kh4 {[%emt 0:00:04]} Ke4 {[%emt 0:00:48]} 52. Kxh5 {[%emt 0:00:20]} Kf3 {[%emt 0:01:21]} 53. Ra2 {[%emt 0:00:24]} g3 {[%emt 0:02:05]} 54. Ra3+ {[%emt 0:00:03]} Kf4 {[%emt 0:00:36]} 55. hxg3+ {[%emt 0:00:04]} Kf5 {[%emt 0:00:08]} 56. g4+ {[%emt 0:00:04]} Kf6 {[%emt 0:00:19]} 57. Kh6 {[%emt 0:00:13]} Rg7 {[%emt 0:01:40]} 58. g5+ {[%emt 0:00:10]} Rxg5 {[%emt 0:00:36]} 59. Rf3+ {[%emt 0:00:04]} 1-0

[Event "Pan-AM College-chT 2018"]
[Site "Burlingame"]
[Date "2018.12.28"]
[Round "1"]
[White "Shimanov, Aleksandr"]
[Black "Banik, Siddharth"]
[Result "1-0"]
[ECO "A13"]
[WhiteElo "2610"]
[BlackElo "2276"]
[Annotator "ChessBase"]
[PlyCount "114"]
[EventDate "2018.12.28"]
[EventType "swiss"]
[EventCountry "USA"]
[SourceTitle "playchess.com"]
[Source "ChessBase"]
[SourceQuality "1"]
[TimeControl "5400+30"]

1. c4 {[%emt 0:00:00]} Nf6 {[%emt 0:00:00]} 2. g3 {[%emt 0:00:23]} e6 {[%emt 0:00:42]} 3. Bg2 {[%emt 0:00:27]} d5 {[%emt 0:00:06]} 4. Nf3 {[%emt 0:00:29]} dxc4 {[%emt 0:00:48]} 5. Qa4+ {[%emt 0:00:40]} Nbd7 {[%emt 0:00:12]} 6. Qxc4 {[%emt 0:00:08]} a6 {[%emt 0:00:06]} 7. Qc2 {[%emt 0:00:35]} c5 {[%emt 0:02:05]} 8. Nc3 {[%emt 0:00:45]} Be7 {[%emt 0:01:14]} 9. a4 {[%emt 0:02:33]} O-O {[%emt 0:01:06]} 10. O-O {[%emt 0:00:49]} Nb8 {[%emt 0:06:21]} 11. Ne5 {[%emt 0:02:44]} Qc7 {[%emt 0:01:20]} 12. Nc4 {[%emt 0:00:12]} Nc6 {[%emt 0:03:03]} 13. a5 {[%emt 0:01:05]} Bd7 {[%emt 0:02:29]} 14. d3 {[%emt 0:01:31]} Nd4 {[%emt 0:06:40]} 15. Qd1 {[%emt 0:00:29]} Bc6 {[%emt 0:00:29]} 16. Bf4 {[%emt 0:01:21]} Qd8 {[%emt 0:01:39]} 17. Nb6 {[%emt 0:01:24]} Ra7 {[%emt 0:02:32]} 18. Bxc6 {[%emt 0:06:27]} Nxc6 {[%emt 0:00:07]} 19. Qa4 {[%emt 0:00:22]} Nd7 {[%emt 0:06:29]} 20. Nxd7 {[%emt 0:04:42]} Qxd7 {[%emt 0:00:02]} 21. Be3 {[%emt 0:00:08]} Rd8 {[%emt 0:04:24]} 22. Rfc1 {[%emt 0:05:37]} Raa8 {[%emt 0:01:56]} 23. Ne4 {[%emt 0:10:12]} Nd4 {[%emt 0:01:26]} 24. Bxd4 {[%emt 0:00:07]} cxd4 {[%emt 0:00:34]} 25. Qxd7 {[%emt 0:00:37]} Rxd7 {[%emt 0:00:06]} 26. Ra4 {[%emt 0:01:47]} e5 {[%emt 0:04:31]} 27. Rac4 {[%emt 0:01:52]} f5 {[%emt 0:07:31]} 28. Nc5 {[%emt 0:06:11]} Bxc5 {[%emt 0:00:20]} 29. Rxc5 {[%emt 0:00:05]} Re8 {[%emt 0:00:04]} 30. b4 {[%emt 0:02:24]} g6 {[%emt 0:07:56]} 31. b5 {[%emt 0:00:58]} axb5 {[%emt 0:00:25]} 32. Rxb5 {[%emt 0:00:05]} Kf7 {[%emt 0:16:32]} 33. Rcb1 {[%emt 0:04:56]} Ree7 {[%emt 0:00:07]} 34. Kg2 {[%emt 0:01:22]} Rc7 {[%emt 0:02:10]} 35. R1b2 {[%emt 0:00:51]} Kf6 {[%emt 0:01:57]} 36. h3 {[%emt 0:03:22]} Red7 {[%emt 0:03:47]} 37. Rb6+ {[%emt 0:01:31]} Kf7 {[%emt 0:00:09]} 38. g4 {[%emt 0:00:47]} Re7 {[%emt 0:01:05]} 39. R6b5 {[%emt 0:01:32]} Kf6 {[%emt 0:00:10]} 40. Kg3 {[%emt 0:00:23]} fxg4 {[%emt 0:09:51]} 41. hxg4 {[%emt 0:00:39]} h5 {[%emt 0:00:09]} 42. gxh5 {[%emt 0:07:55]} gxh5 {[%emt 0:00:14]} 43. f4 {[%emt 0:00:05]} e4 {[%emt 0:04:29]} 44. Rxh5 {[%emt 0:06:13]} exd3 {[%emt 0:00:16]} 45. exd3 {[%emt 0:00:48]} Re3+ {[%emt 0:00:15]} 46. Kg4 {[%emt 0:00:04]} Rxd3 {[%emt 0:01:49]} 47. Rb6+ {[%emt 0:00:29]} Kg7 {[%emt 0:00:05]} 48. f5 {[%emt 0:00:14]} Rf7 {[%emt 0:03:17]} 49. Rg6+ {[%emt 0:04:22]} Kf8 {[%emt 0:00:00]} 50. f6 {[%emt 0:00:05]} Ke8 {[%emt 0:00:34]} 51. Re5+ {[%emt 0:00:11]} Kd7 {[%emt 0:00:58]} 52. Rg7 {[%emt 0:01:39]} Kd6 {[%emt 0:00:01]} 53. Rb5 {[%emt 0:00:27]} Rf8 {[%emt 0:00:37]} 54. Rgxb7 {[%emt 0:08:26]} Rd1 {[%emt 0:00:13]} 55. Kf5 {[%emt 0:04:37]} d3 {[%emt 0:01:30]} 56. Ke4 {[%emt 0:00:52]} Re1+ {[%emt 0:00:25]} 57. Kd4 {[%emt 0:01:29]} Ke6 {[%emt 0:01:07]} 1-0

[Event "Pan-AM College-chT 2018"]
[Site "Burlingame"]
[Date "2018.12.28"]
[Round "1"]
[White "Miellier, Yan"]
[Black "Swiercz, Dariusz"]
[Result "0-1"]
[ECO "D75"]
[WhiteElo "2118"]
[BlackElo "2649"]
[Annotator "ChessBase"]
[PlyCount "116"]
[EventDate "2018.12.28"]
[EventType "swiss"]
[EventCountry "USA"]
[SourceTitle "playchess.com"]
[Source "ChessBase"]
[SourceQuality "1"]
[TimeControl "5400+30"]

1. d4 {[%emt 0:00:00]} Nf6 {[%emt 0:01:17]} 2. c4 {[%emt 0:00:09]} g6 {[%emt 0:01:28]} 3. Nc3 {[%emt 0:00:32]} d5 {[%emt 0:00:11]} 4. cxd5 {[%emt 0:00:10]} Nxd5 {[%emt 0:00:06]} 5. g3 {[%emt 0:01:46]} Bg7 {[%emt 0:01:07]} 6. Bg2 {[%emt 0:01:49]} Nxc3 {[%emt 0:01:58]} 7. bxc3 {[%emt 0:00:07]} c5 {[%emt 0:01:05]} 8. Nf3 {[%emt 0:00:18]} Nc6 {[%emt 0:06:25]} 9. O-O {[%emt 0:02:04]} O-O {[%emt 0:01:39]} 10. Be3 {[%emt 0:08:16]} cxd4 {[%emt 0:06:26]} 11. cxd4 {[%emt 0:01:15]} Be6 {[%emt 0:02:49]} 12. Qa4 {[%emt 0:02:55]} Bd5 {[%emt 0:09:36]} 13. Rfd1 {[%emt 0:03:36]} Rc8 {[%emt 0:01:16]} 14. Rac1 {[%emt 0:01:03]} Qa5 {[%emt 0:12:30]} 15. Qxa5 {[%emt 0:00:29]} Nxa5 {[%emt 0:00:01]} 16. Ne5 {[%emt 0:05:00]} Bxg2 {[%emt 0:11:00]} 17. Kxg2 {[%emt 0:00:13]} b5 {[%emt 0:08:49]} 18. Bd2 {[%emt 0:14:09]} Bxe5 {[%emt 0:09:43]} 19. Bxa5 {[%emt 0:00:34]} Bd6 {[%emt 0:01:02]} 20. e4 {[%emt 0:03:47]} f6 {[%emt 0:01:05]} 21. Kf1 {[%emt 0:08:37]} Ba3 {[%emt 0:04:20]} 22. Rb1 {[%emt 0:01:10]} a6 {[%emt 0:00:08]} 23. Bb4 {[%emt 0:00:08]} Bxb4 {[%emt 0:00:37]} 24. Rxb4 {[%emt 0:00:02]} f5 {[%emt 0:03:28]} 25. e5 {[%emt 0:01:24]} Rc2 {[%emt 0:01:23]} 26. a4 {[%emt 0:00:07]} f4 {[%emt 0:00:05]} 27. g4 {[%emt 0:00:08]} f3 {[%emt 0:01:49]} 28. axb5 {[%emt 0:00:21]} axb5 {[%emt 0:00:02]} 29. d5 {[%emt 0:02:53]} Ra8 {[%emt 0:00:20]} 30. Rb3 {[%emt 0:02:37]} Rd2 {[%emt 0:00:14]} 31. Ke1 {[%emt 0:00:30]} Re2+ {[%emt 0:00:04]} 32. Kf1 {[%emt 0:00:01]} Rd2 {[%emt 0:01:23]} 33. Ke1 {[%emt 0:00:20]} Re2+ {[%emt 0:00:06]} 34. Kf1 {[%emt 0:00:05]} Rxe5 {[%emt 0:00:04]} 35. Rxf3 {[%emt 0:00:15]} Rd8 {[%emt 0:02:43]} 36. Re3 {[%emt 0:00:33]} Rxe3 {[%emt 0:00:04]} 37. fxe3 {[%emt 0:00:01]} Kf7 {[%emt 0:00:33]} 38. g5 {[%emt 0:01:27]} b4 {[%emt 0:05:29]} 39. Ke2 {[%emt 0:01:31]} b3 {[%emt 0:00:21]} 40. e4 {[%emt 0:01:08]} b2 {[%emt 0:01:25]} 41. Rb1 {[%emt 0:00:11]} Rb8 {[%emt 0:00:03]} 42. Kd3 {[%emt 0:00:22]} Rb3+ {[%emt 0:05:41]} 43. Kd4 {[%emt 0:06:08]} Rb4+ {[%emt 0:00:25]} 44. Ke5 {[%emt 0:01:17]} Ke8 {[%emt 0:00:46]} 45. d6 {[%emt 0:00:01]} Kd7 {[%emt 0:00:17]} 46. dxe7 {[%emt 0:00:11]} Kxe7 {[%emt 0:00:17]} 47. h4 {[%emt 0:00:16]} Rb5+ {[%emt 0:00:00]} 48. Kd4 {[%emt 0:10:45]} Ke6 {[%emt 0:00:00]} 49. Kc3 {[%emt 0:03:51]} Ke5 {[%emt 0:00:00]} 50. Kc2 {[%emt 0:00:02]} Rb6 {[%emt 0:00:11]} 51. Kd3 {[%emt 0:00:50]} Rb7 {[%emt 0:00:33]} 52. Kc2 {[%emt 0:00:06]} Kxe4 {[%emt 0:00:31]} 53. Re1+ {[%emt 0:00:07]} Kf3 {[%emt 0:00:40]} 54. Kb1 {[%emt 0:00:05]} Rb4 {[%emt 0:00:15]} 55. h5 {[%emt 0:01:39]} gxh5 {[%emt 0:00:21]} 56. Re7 {[%emt 0:00:01]} Kg4 {[%emt 0:00:14]} 57. Rxh7 {[%emt 0:00:55]} Kxg5 {[%emt 0:00:04]} 58. Rg7+ {[%emt 0:00:05]} Kf6 {[%emt 0:00:34]} 0-1

[Event "Pan-AM College-chT 2018"]
[Site "Burlingame"]
[Date "2018.12.28"]
[Round "1"]
[White "Roshan, Rangarajan."]
[Black "Prohaszka, Peter"]
[Result "1/2-1/2"]
[ECO "B13"]
[WhiteElo "2100"]
[BlackElo "2613"]
[Annotator "ChessBase"]
[PlyCount "74"]
[EventDate "2018.12.28"]
[EventType "swiss"]
[EventCountry "USA"]
[SourceTitle "playchess.com"]
[Source "ChessBase"]
[SourceQuality "1"]
[TimeControl "5400+30"]

1. e4 {[%emt 0:00:00]} c6 {[%emt 0:00:00]} 2. d4 {[%emt 0:00:05]} d5 {[%emt 0:00:00]} 3. exd5 {[%emt 0:00:27]} cxd5 {[%emt 0:00:00]} 4. c4 {[%emt 0:00:08]} Nf6 {[%emt 0:00:00]} 5. Nc3 {[%emt 0:00:10]} Nc6 {[%emt 0:00:10]} 6. Nf3 {[%emt 0:00:17]} Be6 {[%emt 0:00:50]} 7. Bg5 {[%emt 0:01:23]} g6 {[%emt 0:01:45]} 8. Bxf6 {[%emt 0:06:00]} exf6 {[%emt 0:00:11]} 9. cxd5 {[%emt 0:00:12]} Bxd5 {[%emt 0:00:03]} 10. Bb5 {[%emt 0:00:17]} Bb4 {[%emt 0:15:36]} 11. O-O {[%emt 0:05:17]} Bxc3 {[%emt 0:07:21]} 12. bxc3 {[%emt 0:00:14]} O-O {[%emt 0:00:07]} 13. c4 {[%emt 0:24:14]} Bxf3 {[%emt 0:09:14]} 14. Qxf3 {[%emt 0:00:07]} Nxd4 {[%emt 0:03:58]} 15. Qxb7 {[%emt 0:00:58]} Qd6 {[%emt 0:04:22]} 16. Qa6 {[%emt 0:06:21]} Rfd8 {[%emt 0:07:25]} 17. Qxd6 {[%emt 0:07:19]} Rxd6 {[%emt 0:00:02]} 18. Ba4 {[%emt 0:01:54]} Rc8 {[%emt 0:06:17]} 19. Bb3 {[%emt 0:01:13]} Kf8 {[%emt 0:05:44]} 20. Rfe1 {[%emt 0:04:50]} Ne6 {[%emt 0:04:14]} 21. Rad1 {[%emt 0:00:58]} Rxd1 {[%emt 0:01:05]} 22. Rxd1 {[%emt 0:00:07]} Ke7 {[%emt 0:00:05]} 23. Kf1 {[%emt 0:01:24]} Rc6 {[%emt 0:04:10]} 24. g3 {[%emt 0:01:28]} Rd6 {[%emt 0:00:42]} 25. Ke2 {[%emt 0:01:43]} Rxd1 {[%emt 0:03:02]} 26. Bxd1 {[%emt 0:01:13]} Kd6 {[%emt 0:00:11]} 27. Kd3 {[%emt 0:00:45]} Kc5 {[%emt 0:02:02]} 28. Bf3 {[%emt 0:02:20]} Nc7 {[%emt 0:00:34]} 29. Kc3 {[%emt 0:00:52]} f5 {[%emt 0:08:04]} 30. Bb7 {[%emt 0:01:27]} Ne8 {[%emt 0:02:47]} 31. Bd5 {[%emt 0:01:51]} Nd6 {[%emt 0:00:01]} 32. f3 {[%emt 0:03:21]} g5 {[%emt 0:03:10]} 33. f4 {[%emt 0:02:00]} gxf4 {[%emt 0:06:28]} 34. gxf4 {[%emt 0:00:04]} Ne4+ {[%emt 0:00:07]} 35. Kd3 {[%emt 0:00:34]} Nd6 {[%emt 0:00:43]} 36. Kc3 {[%emt 0:00:16]} Ne4+ {[%emt 0:01:41]} 37. Kd3 {[%emt 0:00:06]} Nd6 {[%emt 0:00:48] Ke4 [%emt 00:00:34]} 1/2-1/2

[Event "Pan-AM College-chT 2018"]
[Site "Burlingame"]
[Date "2018.12.28"]
[Round "1"]
[White "Floeder, David"]
[Black "Cordova, Emilio"]
[Result "0-1"]
[ECO "A47"]
[WhiteElo "1880"]
[BlackElo "2595"]
[Annotator "ChessBase"]
[PlyCount "89"]
[EventDate "2018.12.28"]
[EventType "swiss"]
[EventCountry "USA"]
[SourceTitle "playchess.com"]
[Source "ChessBase"]
[SourceQuality "1"]
[TimeControl "5400+30"]

1. d4 {[%emt 0:00:00]} Nf6 {[%emt 0:00:00]} 2. Nf3 {[%emt 0:00:00]} e6 {[%emt 0:00:00]} 3. Bf4 {[%emt 0:00:00]} b6 {[%emt 0:00:15]} 4. e3 {[%emt 0:00:14]} Bb7 {[%emt 0:00:06]} 5. Nbd2 {[%emt 0:00:11]} Be7 {[%emt 0:02:26]} 6. h3 {[%emt 0:00:48]} c5 {[%emt 0:00:36]} 7. c3 {[%emt 0:00:26]} O-O {[%emt 0:01:53]} 8. Bd3 {[%emt 0:00:49]} d6 {[%emt 0:00:48]} 9. O-O {[%emt 0:00:51]} Re8 {[%emt 0:09:33]} 10. Re1 {[%emt 0:02:28]} Nbd7 {[%emt 0:03:46]} 11. a4 {[%emt 0:07:00]} cxd4 {[%emt 0:08:12]} 12. exd4 {[%emt 0:00:25]} a6 {[%emt 0:00:23]} 13. Bh2 {[%emt 0:03:37]} Nf8 {[%emt 0:02:58]} 14. Nc4 {[%emt 0:13:07]} Nd5 {[%emt 0:02:12]} 15. Ne3 {[%emt 0:13:07]} Qd7 {[%emt 0:03:07]} 16. Nxd5 {[%emt 0:12:57]} Bxd5 {[%emt 0:00:05]} 17. Qe2 {[%emt 0:04:08]} Qb7 {[%emt 0:04:28]} 18. Be4 {[%emt 0:01:00]} b5 {[%emt 0:04:50]} 19. Bxd5 {[%emt 0:14:00]} Qxd5 {[%emt 0:00:05]} 20. Nd2 {[%emt 0:00:59]} Nd7 {[%emt 0:11:03]} 21. Qe4 {[%emt 0:05:08]} Qxe4 {[%emt 0:05:00]} 22. Nxe4 {[%emt 0:00:48]} d5 {[%emt 0:01:49]} 23. Nd6 {[%emt 0:00:57]} Bxd6 {[%emt 0:00:05]} 24. Bxd6 {[%emt 0:00:08]} Nb6 {[%emt 0:04:33]} 25. axb5 {[%emt 0:02:28]} Nc4 {[%emt 0:01:36]} 26. Bb4 {[%emt 0:04:28]} axb5 {[%emt 0:00:18]} 27. Ba3 {[%emt 0:04:16]} Rec8 {[%emt 0:01:59]} 28. Rec1 {[%emt 0:04:46]} Ra4 {[%emt 0:05:22]} 29. b3 {[%emt 0:01:49]} Rxa3 {[%emt 0:00:07]} 30. bxc4 {[%emt 0:00:07]} Rxa1 {[%emt 0:00:06]} 31. Rxa1 {[%emt 0:00:04]} bxc4 {[%emt 0:00:14]} 32. Kf1 {[%emt 0:01:06]} g5 {[%emt 0:00:10]} 33. Ke2 {[%emt 0:01:06]} Rb8 {[%emt 0:00:04]} 34. Ra2 {[%emt 0:00:52]} Rb1 {[%emt 0:00:15]} 35. Rc2 {[%emt 0:00:44]} Kg7 {[%emt 0:00:15]} 36. Kf3 {[%emt 0:00:31]} Rd1 {[%emt 0:01:42]} 37. Re2 {[%emt 0:01:05]} h5 {[%emt 0:04:53]} 38. g3 {[%emt 0:00:56]} Rd3+ {[%emt 0:04:08]} 39. Re3 {[%emt 0:00:07]} Rd2 {[%emt 0:03:15]} 40. Re1 {[%emt 0:00:23]} Kg6 {[%emt 0:00:24]} 41. Re3 {[%emt 0:01:01]} g4+ {[%emt 0:03:31]} 42. hxg4 {[%emt 0:00:24]} hxg4+ {[%emt 0:00:02]} 43. Kg2 {[%emt 0:01:24]} Rd3 {[%emt 0:00:46]} 44. Rxd3 {[%emt 0:00:40]} cxd3 {[%emt 0:00:04]} 45. c4 {[%emt 0:00:22]} 0-1

[Event "Pan-AM College-chT 2018"]
[Site "Burlingame"]
[Date "2018.12.28"]
[Round "2"]
[White "Stefanov, Emil"]
[Black "Ipatov, Alexander"]
[Result "0-1"]
[ECO "A50"]
[WhiteElo "2392"]
[BlackElo "2649"]
[Annotator "RC"]
[PlyCount "24"]
[EventDate "2018.12.28"]
[EventType "swiss"]
[EventCountry "USA"]
[SourceTitle "playchess.com"]
[Source "ChessBase"]
[SourceQuality "1"]
[TimeControl "5400+30"]

1. d4 {[%emt 0:00:00]} Nf6 {[%emt 0:00:00]} 2. c4 {[%emt 0:00:00]} b6 {[%emt 0:00:00]} 3. Nf3 {[%emt 0:01:51]} Bb7 {[%emt 0:00:24]} 4. g3 {[%emt 0:00:20]} g6 {[%emt 0:03:52]} 5. Bg2 {[%emt 0:03:14]} Bg7 {[%emt 0:03:44]} 6. O-O {[%emt 0:01:52]} O-O {[%emt 0:00:03]} 7. Nc3 {[%emt 0:16:44]} Ne4 {[%emt 0:00:05]} 8. Qd3 {[%emt 0:05:01]} Nxc3 {[%emt 0:00:38]} 9. bxc3 {[%emt 0:00:08]} Nc6 {[%emt 0:04:19]} 10. Nd2 {[%emt 0:02:20]} Na5 {[%emt 0:05:16]} 11. Bf3 {[%emt 0:01:56]} Bc6 12. Bxc6 {[%emt 0:00:31]} Nb7 {[%emt 0:02:53]} 0-1

[Event "Pan-AM College-chT 2018"]
[Site "Burlingame"]
[Date "2018.11.23"]
[Round "2"]
[White "Kelson, Richard"]
[Black "Lu, Joshua"]
[Result "1/2-1/2"]
[ECO "B15"]
[WhiteElo "2170"]
[BlackElo "1943"]
[Annotator "NA RC"]
[PlyCount "71"]
[EventDate "2018.12.28"]
[EventType "swiss"]
[EventCountry "USA"]
[SourceTitle "playchess.com"]
[Source "ChessBase"]
[SourceQuality "1"]
[TimeControl "5400+30"]

1. e4 {[%emt 0:00:00]} c6 {[%emt 0:00:00]} 2. d4 {[%emt 0:00:00]} d5 {[%emt 0:00:00]} 3. Nc3 {[%emt 0:00:00]} g6 {[%emt 0:00:00]} 4. Nf3 {[%emt 0:00:00]} Bg7 {[%emt 0:00:00]} 5. h3 {[%emt 0:00:00]} dxe4 {[%emt 0:00:00]} 6. Nxe4 {[%emt 0:00:00]} Nd7 {[%emt 0:00:00]} 7. Bc4 {[%emt 0:00:00]} Ngf6 {[%emt 0:00:00]} 8. Nxf6+ {[%emt 0:00:00]} Nxf6 {[%emt 0:00:00]} 9. O-O {[%emt 0:01:33]} O-O {[%emt 0:00:00]} 10. Bf4 {[%emt 0:03:40]} b6 {[%emt 0:00:00]} 11. Re1 {[%emt 0:11:20]} Bb7 {[%emt 0:00:00]} 12. Qe2 {[%emt 0:05:32]} e6 {[%emt 0:00:00]} 13. Rad1 {[%emt 0:04:51]} Qc8 {[%emt 0:00:00]} 14. Be5 {[%emt 0:06:47]} a5 {[%emt 0:00:00]} 15. a4 {[%emt 0:00:55]} Ba6 {[%emt 0:00:00]} 16. Bxa6 {[%emt 0:10:07]} Qxa6 {[%emt 0:01:07]} 17. c4 {[%emt 0:01:20]} Rfd8 {[%emt 0:03:05]} 18. b3 {[%emt 0:03:42]} Rac8 {[%emt 0:02:25]} 19. Qb2 {[%emt 0:11:53]} Ne8 {[%emt 0:04:11]} 20. Bxg7 {[%emt 0:06:34]} Nxg7 {[%emt 0:00:42]} 21. d5 {[%emt 0:09:49]} cxd5 {[%emt 0:04:09]} 22. cxd5 {[%emt 0:00:33]} exd5 {[%emt 0:12:38]} 23. Qf6 {[%emt 0:03:13]} Re8 {[%emt 0:04:03]} 24. Rxe8+ {[%emt 0:03:32]} Rxe8 {[%emt 0:03:00]} 25. Rxd5 {[%emt 0:01:52]} Qb7 {[%emt 0:05:28]} 26. Rd8 {[%emt 0:02:56]} Qc7 {[%emt 0:05:23]} 27. Rd6 {[%emt 0:03:17]} Qc1+ {[%emt 0:16:16]} 28. Kh2 {[%emt 0:00:34]} Re6 {[%emt 0:05:17]} 29. Qd8+ {[%emt 0:02:45]} Re8 {[%emt 0:01:23]} 30. Qf6 {[%emt 0:02:40]} Re6 {[%emt 0:00:46]} 31. Qd8+ {[%emt 0:02:05]} Re8 {[%emt 0:00:32]} 32. Qxb6 {[%emt 0:00:57]} Qf4+ {[%emt 0:00:01]} 33. Kh1 Qc1+ 34. Ng1 Re1 {[%emt 0:00:01]} 35. f3 Nf5 {[%emt 0:00:01]} 36. Rd8+ {[%emt 0:03:13] Re5 [%clk 00:35:05]} 1/2-1/2

[Event "Pan-AM College-chT 2018"]
[Site "Burlingame"]
[Date "2018.11.23"]
[Round "2"]
[White "Pan, Kevin"]
[Black "Wu, Rochelle"]
[Result "1/2-1/2"]
[ECO "B23"]
[WhiteElo "2123"]
[BlackElo "2096"]
[Annotator "NA RC"]
[PlyCount "37"]
[EventDate "2018.12.28"]
[EventType "swiss"]
[EventCountry "USA"]
[SourceTitle "playchess.com"]
[Source "ChessBase"]
[SourceQuality "1"]
[TimeControl "5400+30"]

1. e4 {[%emt 0:00:00]} c5 {[%emt 0:00:00]} 2. Nc3 {[%emt 0:00:00]} a6 {[%emt 0:00:00]} 3. f4 {[%emt 0:00:00]} b5 {[%emt 0:00:00]} 4. Nf3 {[%emt 0:00:00]} Bb7 {[%emt 0:00:00]} 5. d3 {[%emt 0:00:00]} e6 {[%emt 0:00:00]} 6. g3 {[%emt 0:00:00]} d5 {[%emt 0:00:00]} 7. e5 {[%emt 0:00:00]} h5 {[%emt 0:00:00]} 8. Bg2 {[%emt 0:00:00]} Nh6 {[%emt 0:00:00]} 9. d4 {[%emt 0:00:00]} Nf5 {[%emt 0:00:00]} 10. Ne2 {[%emt 0:00:00]} Nc6 {[%emt 0:00:00]} 11. c3 {[%emt 0:00:00]} Qb6 {[%emt 0:00:00]} 12. Bh3 {[%emt 0:00:00]} Nce7 {[%emt 0:00:00]} 13. O-O {[%emt 0:00:00]} Nh6 {[%emt 0:01:53]} 14. dxc5 {[%emt 0:00:00]} Qxc5+ {[%emt 0:00:32]} 15. Ned4 {[%emt 0:00:00]} Nef5 {[%emt 0:00:49]} 16. Kh1 {[%emt 0:04:04]} g6 {[%emt 0:02:00]} 17. Bd2 {[%emt 0:08:41]} Be7 {[%emt 0:01:42]} 18. Qc1 {[%emt 0:12:58]} Qb6 {[%emt 0:02:01]} 19. Ng1 {[%emt 0:03:19]} 1/2-1/2

[Event "Pan-AM College-chT 2018"]
[Site "Burlingame"]
[Date "2018.11.23"]
[Round "2"]
[White "Ravuri, Vinesh"]
[Black "Sartorio, William"]
[Result "1-0"]
[ECO "D00"]
[WhiteElo "2042"]
[BlackElo "1873"]
[Annotator "NA RC"]
[PlyCount "63"]
[EventDate "2018.12.28"]
[EventType "swiss"]
[EventCountry "USA"]
[SourceTitle "playchess.com"]
[Source "ChessBase"]
[SourceQuality "1"]
[TimeControl "5400+30"]

1. d4 {[%emt 0:00:00]} d5 {[%emt 0:00:00]} 2. Nc3 {[%emt 0:00:00]} Nf6 {[%emt 0:00:00]} 3. Bf4 {[%emt 0:00:00]} c6 {[%emt 0:00:00]} 4. e3 {[%emt 0:00:00]} e6 {[%emt 0:00:00]} 5. Bd3 {[%emt 0:00:00]} Bd6 {[%emt 0:00:00]} 6. Nf3 {[%emt 0:00:00]} b6 {[%emt 0:00:00]} 7. Qd2 {[%emt 0:00:00]} Bb7 {[%emt 0:00:00]} 8. e4 {[%emt 0:00:00]} dxe4 {[%emt 0:00:00]} 9. Nxe4 {[%emt 0:00:00]} Bxf4 {[%emt 0:00:00]} 10. Qxf4 {[%emt 0:00:00]} Nxe4 {[%emt 0:00:00]} 11. Bxe4 {[%emt 0:00:00]} Nd7 {[%emt 0:00:00]} 12. O-O-O {[%emt 0:00:00]} Nf6 {[%emt 0:00:00]} 13. Ne5 {[%emt 0:00:00]} Qc7 {[%emt 0:00:00]} 14. Bf3 {[%emt 0:00:00]} O-O {[%emt 0:00:00]} 15. h4 {[%emt 0:00:00]} Rac8 {[%emt 0:00:00]} 16. h5 {[%emt 0:09:59]} h6 {[%emt 0:06:33]} 17. g4 {[%emt 0:02:43]} Nh7 {[%emt 0:01:03]} 18. Rhe1 {[%emt 0:05:01]} Ng5 {[%emt 0:05:05]} 19. Bg2 {[%emt 0:01:10]} c5 {[%emt 0:01:09]} 20. Bxb7 {[%emt 0:00:36]} Qxb7 {[%emt 0:00:32]} 21. dxc5 {[%emt 0:00:50]} Rxc5 {[%emt 0:00:45]} 22. Nd7 {[%emt 0:00:52]} Rfc8 {[%emt 0:12:11]} 23. Nxc5 {[%emt 0:01:22]} Rxc5 {[%emt 0:00:37]} 24. Qe3 {[%emt 0:02:46]} Qa6 {[%emt 0:02:07]} 25. Kb1 {[%emt 0:01:26]} Qa4 {[%emt 0:02:33]} 26. Rd8+ {[%emt 0:00:40]} Kh7 {[%emt 0:00:35]} 27. Qd3+ {[%emt 0:00:30]} f5 {[%emt 0:00:45]} 28. Rd4 {[%emt 0:02:50]} Qc6 {[%emt 0:01:37]} 29. Rd1 {[%emt 0:11:09]} Ne4 {[%emt 0:01:50]} 30. Rd7 {[%emt 0:00:48]} Qa4 {[%emt 0:05:08]} 31. gxf5 {[%emt 0:01:33]} Nxf2 {[%emt 0:02:33]} 32. Rg1 {[%emt 0:00:48]} 1-0